[Event "Late-Titled-Tuesday-Blitz-September-26-2023"]
[Site "Chess.com"]
[Date "2023.09.26"]
[Round "11"]
[White "Byniolus"]
[Black "whitemirrorninja"]
[Result "1-0"]
[WhiteElo "2763"]
[BlackElo "2509"]
[TimeControl "180+1"]
[EndTime "16:01:54 PDT"]
[Termination "Byniolus won by checkmate"]

1. f3 {[%clk 0:03:00.9]} 1... d5 {[%clk 0:02:56.8]} 2. e3 {[%clk 0:03:01.2]}
2... g6 {[%clk 0:02:56.3]} 3. d3 {[%clk 0:03:01.7]} 3... Bg7 {[%clk 0:02:56.5]}
4. c3 {[%clk 0:03:02.6]} 4... Nf6 {[%clk 0:02:56.3]} 5. g3 {[%clk 0:03:03.3]}
5... O-O {[%clk 0:02:56.3]} 6. h3 {[%clk 0:03:03.9]} 6... b6 {[%clk 0:02:56.2]}
7. b3 {[%clk 0:03:04.3]} 7... Bb7 {[%clk 0:02:56.2]} 8. a3 {[%clk 0:03:04.9]}
8... c5 {[%clk 0:02:56.7]} 9. Bg2 {[%clk 0:03:04.5]} 9... Nbd7 {[%clk
0:02:56.4]} 10. Ne2 {[%clk 0:03:04.6]} 10... Qc7 {[%clk 0:02:53.4]} 11. O-O
{[%clk 0:03:04.4]} 11... e5 {[%clk 0:02:49.8]} 12. Nd2 {[%clk 0:03:01]} 12...
Rfe8 {[%clk 0:02:47.8]} 13. Kh2 {[%clk 0:02:59.3]} 13... h5 {[%clk 0:02:44.5]}
14. Kh1 {[%clk 0:02:55.7]} 14... Rad8 {[%clk 0:02:42.1]} 15. Qc2 {[%clk
0:02:52.2]} 15... Nf8 {[%clk 0:02:39.1]} 16. Re1 {[%clk 0:02:48.4]} 16... Qb8
{[%clk 0:02:38.7]} 17. a4 {[%clk 0:02:43.4]} 17... Qa8 {[%clk 0:02:34.8]} 18. a5
{[%clk 0:02:41.1]} 18... b5 {[%clk 0:02:29.2]} 19. a6 {[%clk 0:02:41.2]} 19...
Bc6 {[%clk 0:02:29.5]} 20. Bb2 {[%clk 0:02:33.8]} 20... Ne6 {[%clk 0:02:25.5]}
21. d4 {[%clk 0:02:29]} 21... exd4 {[%clk 0:02:18.3]} 22. exd4 {[%clk
0:02:29.2]} 22... c4 {[%clk 0:02:17.1]} 23. Ba3 {[%clk 0:02:18.7]} 23... Qc8
{[%clk 0:02:13.3]} 24. Bb4 {[%clk 0:02:09.9]} 24... Bd7 {[%clk 0:02:11]} 25. h4
{[%clk 0:02:05]} 25... Nc7 {[%clk 0:02:03.5]} 26. Nf1 {[%clk 0:02:00.6]} 26...
Bh3 {[%clk 0:01:58.6]} 27. Bc5 {[%clk 0:01:50.7]} 27... Bxg2+ {[%clk 0:01:43.9]}
28. Kxg2 {[%clk 0:01:51.6]} 28... Nxa6 {[%clk 0:01:39.8]} 29. Bxa7 {[%clk
0:01:49.9]} 29... Rd7 {[%clk 0:01:37.7]} 30. Bb6 {[%clk 0:01:46.8]} 30... Rde7
{[%clk 0:01:31.4]} 31. Kf2 {[%clk 0:01:42.1]} 31... Nb8 {[%clk 0:01:19.6]} 32.
Bc5 {[%clk 0:01:38.5]} 32... Re6 {[%clk 0:01:16.7]} 33. Nf4 {[%clk 0:01:36.7]}
33... Rxe1 {[%clk 0:01:14]} 34. Rxe1 {[%clk 0:01:37.6]} 34... Rxe1 {[%clk
0:01:13.6]} 35. Kxe1 {[%clk 0:01:38.5]} 35... Nbd7 {[%clk 0:01:10.1]} 36. b4
{[%clk 0:01:35.2]} 36... Bh6 {[%clk 0:01:05.8]} 37. Ng2 {[%clk 0:01:22.5]} 37...
Qa8 {[%clk 0:00:52.4]} 38. Nge3 {[%clk 0:01:15.8]} 38... Qa1+ {[%clk 0:00:46.7]}
39. Kf2 {[%clk 0:01:13.2]} 39... Qa6 {[%clk 0:00:36.1]} 40. g4 {[%clk
0:01:08.9]} 40... hxg4 {[%clk 0:00:32.4]} 41. Nxg4 {[%clk 0:01:02.3]} 41...
Nxg4+ {[%clk 0:00:32]} 42. fxg4 {[%clk 0:01:03.2]} 42... Nf6 {[%clk 0:00:29.7]}
43. g5 {[%clk 0:00:59.8]} 43... Ne4+ {[%clk 0:00:30.1]} 44. Kg2 {[%clk 0:00:59]}
44... Bg7 {[%clk 0:00:21]} 45. Ng3 {[%clk 0:00:57.4]} 45... Qe6 {[%clk
0:00:17.2]} 46. Nxe4 {[%clk 0:00:54.8]} 46... dxe4 {[%clk 0:00:18.1]} 47. Qe2
{[%clk 0:00:50]} 47... e3 {[%clk 0:00:18.3]} 48. Kf3 {[%clk 0:00:45.3]} 48...
Qh3+ {[%clk 0:00:16.8]} 49. Ke4 {[%clk 0:00:41]} 49... f5+ {[%clk 0:00:10.3]}
50. Kd5 {[%clk 0:00:33.1]} 50... f4 {[%clk 0:00:10.2]} 51. Kc6 {[%clk
0:00:21.5]} 51... Qe6+ {[%clk 0:00:08.9]} 52. Kxb5 {[%clk 0:00:20.7]} 52... Qe4
{[%clk 0:00:04.2]} 53. h5 {[%clk 0:00:18.4]} 53... gxh5 {[%clk 0:00:03.9]} 54.
Qxc4+ {[%clk 0:00:15.8]} 54... Kh7 {[%clk 0:00:03.5]} 55. d5 {[%clk 0:00:14.7]}
55... e2 {[%clk 0:00:03.6]} 56. Bf2 {[%clk 0:00:15.6]} 56... Qxc4+ {[%clk
0:00:03.4]} 57. Kxc4 {[%clk 0:00:15.7]} 57... f3 {[%clk 0:00:02.2]} 58. d6
{[%clk 0:00:14.1]} 58... Be5 {[%clk 0:00:02.8]} 59. Kd5 {[%clk 0:00:12.5]} 59...
Bxd6 {[%clk 0:00:01.6]} 60. Kxd6 {[%clk 0:00:12.5]} 60... Kg6 {[%clk 0:00:01.4]}
61. b5 {[%clk 0:00:09.7]} 61... Kxg5 {[%clk 0:00:01.6]} 62. b6 {[%clk
0:00:10.4]} 62... Kg4 {[%clk 0:00:02.2]} 63. b7 {[%clk 0:00:10.7]} 63... Kh3
{[%clk 0:00:03]} 64. b8=Q {[%clk 0:00:11.3]} 64... Kg2 {[%clk 0:00:03.7]} 65.
Qb6 {[%clk 0:00:09.6]} 65... h4 {[%clk 0:00:03.2]} 66. Bxh4 {[%clk 0:00:09.5]}
66... f2 {[%clk 0:00:02.1]} 67. Qxf2+ {[%clk 0:00:09.6]} 67... Kh3 {[%clk
0:00:02.1]} 68. Qg3# {[%clk 0:00:09.9]} 1-0

[Event "Late-Titled-Tuesday-Blitz-September-26-2023"]
[Site "Chess.com"]
[Date "2023.09.26"]
[Round "11"]
[White "Yushko_Olga"]
[Black "cristiano78"]
[Result "0-1"]
[WhiteElo "2058"]
[BlackElo "2254"]
[TimeControl "180+1"]
[EndTime "16:02:22 PDT"]
[Termination "cristiano78 won by resignation"]

1. d4 {[%clk 0:02:59.4]} 1... Nf6 {[%clk 0:02:59.9]} 2. c4 {[%clk 0:02:59.5]}
2... g6 {[%clk 0:03:00.3]} 3. Nc3 {[%clk 0:02:59.6]} 3... Bg7 {[%clk 0:03:00.9]}
4. Nf3 {[%clk 0:02:59.6]} 4... d6 {[%clk 0:03:01.6]} 5. Bg5 {[%clk 0:02:59.6]}
5... O-O {[%clk 0:03:02.3]} 6. e3 {[%clk 0:03:00]} 6... Nbd7 {[%clk 0:03:02.2]}
7. Qc2 {[%clk 0:02:58.5]} 7... b6 {[%clk 0:03:00.6]} 8. Be2 {[%clk 0:02:58.2]}
8... Bb7 {[%clk 0:03:01]} 9. O-O {[%clk 0:02:58.8]} 9... Re8 {[%clk 0:02:59.2]}
10. Rad1 {[%clk 0:02:58.2]} 10... h6 {[%clk 0:02:56.6]} 11. Bh4 {[%clk
0:02:58.3]} 11... g5 {[%clk 0:02:55.9]} 12. Bg3 {[%clk 0:02:58.4]} 12... Nh5
{[%clk 0:02:55.9]} 13. Nxg5 {[%clk 0:02:56]} 13... Nxg3 {[%clk 0:02:55.1]} 14.
Qh7+ {[%clk 0:02:51.1]} 14... Kf8 {[%clk 0:02:55.3]} 15. fxg3 {[%clk 0:02:48.8]}
15... Nf6 {[%clk 0:02:54.4]} 16. Qf5 {[%clk 0:02:39.4]} 16... hxg5 {[%clk
0:02:53.3]} 17. Qxg5 {[%clk 0:02:37.4]} 17... e5 {[%clk 0:02:43.8]} 18. h4
{[%clk 0:02:26.2]} 18... Ne4 {[%clk 0:02:40.1]} 19. Qf5 {[%clk 0:02:11.9]} 19...
Nf6 {[%clk 0:02:35]} 20. h5 {[%clk 0:02:07.6]} 20... Bc8 {[%clk 0:02:34.6]} 21.
Qf3 {[%clk 0:02:01.4]} 21... Bg4 {[%clk 0:02:30.9]} 22. Qf2 {[%clk 0:01:57]}
22... Bxe2 {[%clk 0:02:30.9]} 23. Nxe2 {[%clk 0:01:57.9]} 23... exd4 {[%clk
0:02:31.1]} 24. Nxd4 {[%clk 0:01:55.5]} 24... Qe7 {[%clk 0:01:59.9]} 25. Nf5
{[%clk 0:01:33.6]} 25... Qe6 {[%clk 0:01:56.7]} 26. Rd4 {[%clk 0:01:13.8]} 26...
Nxh5 {[%clk 0:01:46.5]} 27. Nxg7 {[%clk 0:01:10.1]} 27... Kxg7 {[%clk
0:01:38.8]} 28. e4 {[%clk 0:01:03.2]} 28... Qg6 {[%clk 0:01:31.2]} 29. Rd5
{[%clk 0:00:55.8]} 29... Re5 {[%clk 0:01:29.4]} 30. Rd3 {[%clk 0:00:53.2]} 30...
Rae8 {[%clk 0:01:26.7]} 31. Rf3 {[%clk 0:00:53.3]} 31... R8e7 {[%clk 0:01:21.9]}
32. g4 {[%clk 0:00:51.9]} 32... Qxg4 {[%clk 0:01:14.3]} 33. Rxf7+ {[%clk
0:00:50.2]} 33... Rxf7 {[%clk 0:01:14.3]} 34. Qxf7+ {[%clk 0:00:50.5]} 34... Kh6
{[%clk 0:01:14.3]} 35. Qf8+ {[%clk 0:00:36.5]} 35... Qg7 {[%clk 0:01:10.8]} 36.
Qf3 {[%clk 0:00:32.7]} 36... Rg5 {[%clk 0:01:05.5]} 37. Qe3 {[%clk 0:00:28.2]}
37... Kh7 {[%clk 0:01:00.8]} 38. Qf3 {[%clk 0:00:24.9]} 38... Ng3 {[%clk
0:00:54.6]} 39. Rd1 {[%clk 0:00:21.2]} 39... Qg6 {[%clk 0:00:52.4]} 40. e5
{[%clk 0:00:19.2]} 40... Rxe5 {[%clk 0:00:46.1]} 41. Kh2 {[%clk 0:00:11.8]}
41... Rh5+ {[%clk 0:00:43.7]} 42. Kg1 {[%clk 0:00:12.2]} 42... Rh1+ {[%clk
0:00:42.2]} 43. Kf2 {[%clk 0:00:12.2]} 43... Rxd1 {[%clk 0:00:38.2]} 44. Qxd1
{[%clk 0:00:12.5]} 44... Ne4+ {[%clk 0:00:37]} 45. Ke3 {[%clk 0:00:11.5]} 45...
Nc5 {[%clk 0:00:36.3]} 46. b4 {[%clk 0:00:08.3]} 46... Qe4+ {[%clk 0:00:35.1]}
47. Kf2 {[%clk 0:00:06.8]} 47... Nd3+ {[%clk 0:00:32.7]} 48. Kg1 {[%clk
0:00:03.9]} 48... Qe3+ {[%clk 0:00:31.5]} 49. Kh2 {[%clk 0:00:03.2]} 49... Qf4+
{[%clk 0:00:25.9]} 50. Kg1 {[%clk 0:00:02.8]} 50... Qf2+ {[%clk 0:00:23.5]} 51.
Kh2 {[%clk 0:00:03.7]} 51... Nf4 {[%clk 0:00:20.4]} 52. Qb1+ {[%clk 0:00:02.7]}
52... Kh6 {[%clk 0:00:19.8]} 53. Qe4 {[%clk 0:00:02.7]} 53... Qxg2+ {[%clk
0:00:18.2]} 54. Qxg2 {[%clk 0:00:02.6]} 54... Nxg2 {[%clk 0:00:19.1]} 55. Kxg2
{[%clk 0:00:03]} 55... Kg5 {[%clk 0:00:20]} 56. Kf3 {[%clk 0:00:03.6]} 56... Kf5
{[%clk 0:00:20.9]} 57. Ke3 {[%clk 0:00:04.4]} 57... Ke5 {[%clk 0:00:21.8]} 58.
Kd3 {[%clk 0:00:05.1]} 58... d5 {[%clk 0:00:21.7]} 59. c5 {[%clk 0:00:05.3]}
59... d4 {[%clk 0:00:21.7]} 60. Kc4 {[%clk 0:00:04.9]} 60... Ke4 {[%clk
0:00:21.7]} 61. cxb6 {[%clk 0:00:05.1]} 61... axb6 {[%clk 0:00:21.8]} 62. a4
{[%clk 0:00:05.4]} 62... d3 {[%clk 0:00:22.3]} 63. a5 {[%clk 0:00:05.4]} 63...
bxa5 {[%clk 0:00:22.2]} 64. bxa5 {[%clk 0:00:05.7]} 64... d2 {[%clk 0:00:23]}
65. a6 {[%clk 0:00:06.4]} 65... d1=Q {[%clk 0:00:22.8]} 66. Kb5 {[%clk
0:00:06.8]} 66... Qd3+ {[%clk 0:00:22.4]} 67. Ka5 {[%clk 0:00:06.3]} 67... Qxa6+
{[%clk 0:00:22.5]} 68. Kxa6 {[%clk 0:00:06.3]} 68... c5 {[%clk 0:00:23.1]} 69.
Kb5 {[%clk 0:00:06.2]} 69... Kd4 {[%clk 0:00:23.6]} 70. Ka4 {[%clk 0:00:06.5]}
70... c4 {[%clk 0:00:24.5]} 71. Ka3 {[%clk 0:00:06.4]} 71... Kd3 {[%clk
0:00:25.1]} 72. Kb2 {[%clk 0:00:06.7]} 72... Kd2 {[%clk 0:00:25.6]} 73. Kb1
{[%clk 0:00:06.8]} 73... c3 {[%clk 0:00:25.8]} 0-1

[Event "Late-Titled-Tuesday-Blitz-September-26-2023"]
[Site "Chess.com"]
[Date "2023.09.26"]
[Round "11"]
[White "tarno17"]
[Black "Colombiano07"]
[Result "1/2-1/2"]
[WhiteElo "2163"]
[BlackElo "2349"]
[TimeControl "180+1"]
[EndTime "16:02:26 PDT"]
[Termination "Game drawn - insufficient material"]

1. e4 {[%clk 0:03:00.9]} 1... c6 {[%clk 0:02:57.5]} 2. d4 {[%clk 0:03:01.1]}
2... d5 {[%clk 0:02:58.4]} 3. Nc3 {[%clk 0:03:01.4]} 3... dxe4 {[%clk
0:02:58.6]} 4. Nxe4 {[%clk 0:03:02.3]} 4... Bf5 {[%clk 0:02:58.8]} 5. Ng3 {[%clk
0:03:02.8]} 5... Bg6 {[%clk 0:02:59.5]} 6. h4 {[%clk 0:03:03.7]} 6... h6 {[%clk
0:03:00.1]} 7. h5 {[%clk 0:03:04.5]} 7... Bh7 {[%clk 0:03:00.2]} 8. Nf3 {[%clk
0:03:05.3]} 8... Nd7 {[%clk 0:02:59.9]} 9. Bd3 {[%clk 0:03:06.1]} 9... Bxd3
{[%clk 0:03:00]} 10. Qxd3 {[%clk 0:03:07]} 10... Qc7 {[%clk 0:03:00.4]} 11. Bd2
{[%clk 0:02:56.5]} 11... Ngf6 {[%clk 0:03:00.6]} 12. c4 {[%clk 0:02:50.9]} 12...
e6 {[%clk 0:02:59.8]} 13. Ne4 {[%clk 0:02:36.6]} 13... Nxe4 {[%clk 0:02:59.2]}
14. Qxe4 {[%clk 0:02:37.4]} 14... Nf6 {[%clk 0:03:00.1]} 15. Qe5 {[%clk
0:02:37.4]} 15... Qxe5+ {[%clk 0:02:59.2]} 16. dxe5 {[%clk 0:02:28]} 16... Nd7
{[%clk 0:02:58.2]} 17. O-O-O {[%clk 0:02:17.9]} 17... O-O-O {[%clk 0:02:57.9]}
18. Be3 {[%clk 0:02:10.8]} 18... Bc5 {[%clk 0:02:57.5]} 19. Rhe1 {[%clk
0:02:01.8]} 19... Bxe3+ {[%clk 0:02:56.7]} 20. Rxe3 {[%clk 0:02:02.4]} 20... Nc5
{[%clk 0:02:52.6]} 21. b4 {[%clk 0:01:52.9]} 21... Na4 {[%clk 0:02:47.7]} 22.
Rxd8+ {[%clk 0:01:44.6]} 22... Rxd8 {[%clk 0:02:47.1]} 23. Kc2 {[%clk
0:01:45.4]} 23... b5 {[%clk 0:02:43.5]} 24. c5 {[%clk 0:01:39.6]} 24... Rd5
{[%clk 0:02:39.3]} 25. Ne1 {[%clk 0:01:20.9]} 25... a5 {[%clk 0:02:35.5]} 26. a3
{[%clk 0:01:17.7]} 26... axb4 {[%clk 0:02:36.2]} 27. axb4 {[%clk 0:01:18.6]}
27... Kd7 {[%clk 0:02:31.2]} 28. Nd3 {[%clk 0:01:07.7]} 28... Rd4 {[%clk
0:02:09.4]} 29. Rg3 {[%clk 0:01:07.1]} 29... Rc4+ {[%clk 0:02:05.9]} 30. Kd2
{[%clk 0:01:01.5]} 30... Rh4 {[%clk 0:01:24.7]} 31. Rxg7 {[%clk 0:01:00.7]}
31... Ke7 {[%clk 0:01:25.4]} 32. g4 {[%clk 0:00:55]} 32... Rh2 {[%clk
0:01:23.6]} 33. Rh7 {[%clk 0:00:38.5]} 33... Rg2 {[%clk 0:01:20.7]} 34. Rxh6
{[%clk 0:00:36.1]} 34... Rxg4 {[%clk 0:01:20.8]} 35. Rh8 {[%clk 0:00:34.7]}
35... Rd4 {[%clk 0:01:12.8]} 36. Ke3 {[%clk 0:00:26.7]} 36... Rh4 {[%clk
0:01:13.5]} 37. h6 {[%clk 0:00:25.6]} 37... Nc3 {[%clk 0:01:13.1]} 38. h7 {[%clk
0:00:25.4]} 38... Nd5+ {[%clk 0:01:12.8]} 39. Kf3 {[%clk 0:00:23.2]} 39... Rh1
{[%clk 0:00:46.2]} 40. Kg2 {[%clk 0:00:21.7]} 40... Rh5 {[%clk 0:00:45.8]} 41.
Kg3 {[%clk 0:00:20.5]} 41... Rh1 {[%clk 0:00:45.7]} 42. Kg2 {[%clk 0:00:14.7]}
42... Rh6 {[%clk 0:00:45.6]} 43. f4 {[%clk 0:00:14.6]} 43... Rh5 {[%clk
0:00:44.6]} 44. Kg3 {[%clk 0:00:14.1]} 44... Rh1 {[%clk 0:00:44.6]} 45. Nf2
{[%clk 0:00:14.7]} 45... Rh6 {[%clk 0:00:40.7]} 46. Ng4 {[%clk 0:00:14.2]} 46...
Rh5 {[%clk 0:00:38.4]} 47. Kf3 {[%clk 0:00:12.6]} 47... Rh3+ {[%clk 0:00:37.5]}
48. Kg2 {[%clk 0:00:12.3]} 48... Rh4 {[%clk 0:00:38.4]} 49. Kg3 {[%clk
0:00:12.7]} 49... Rh5 {[%clk 0:00:38.7]} 50. Kf2 {[%clk 0:00:11.6]} 50... Rh4
{[%clk 0:00:38.3]} 51. Kf3 {[%clk 0:00:11.1]} 51... Rh3+ {[%clk 0:00:38.1]} 52.
Kg2 {[%clk 0:00:08.2]} 52... Rh4 {[%clk 0:00:39]} 53. Kg3 {[%clk 0:00:08.2]}
53... Rh1 {[%clk 0:00:39.2]} 54. Nf2 {[%clk 0:00:07.5]} 54... Rh6 {[%clk
0:00:38]} 55. Ne4 {[%clk 0:00:07.7]} 55... f5 {[%clk 0:00:23]} 56. Ng5 {[%clk
0:00:05]} 56... Nxb4 {[%clk 0:00:11.3]} 57. Ra8 {[%clk 0:00:04.9]} 57... Nd3
{[%clk 0:00:10.9]} 58. h8=Q {[%clk 0:00:04.5]} 58... Rxh8 {[%clk 0:00:11.2]} 59.
Rxh8 {[%clk 0:00:04.8]} 59... Nxc5 {[%clk 0:00:12.1]} 60. Rh7+ {[%clk
0:00:04.1]} 60... Kd8 {[%clk 0:00:11.9]} 61. Kf3 {[%clk 0:00:02.7]} 61... b4
{[%clk 0:00:11.5]} 62. Ke2 {[%clk 0:00:02.8]} 62... Na4 {[%clk 0:00:03.9]} 63.
Nxe6+ {[%clk 0:00:02.8]} 63... Ke8 {[%clk 0:00:03.3]} 64. Nc7+ {[%clk
0:00:02.7]} 64... Kd8 {[%clk 0:00:03.2]} 65. Ne6+ {[%clk 0:00:03]} 65... Ke8
{[%clk 0:00:03]} 66. Nd4 {[%clk 0:00:03.9]} 66... c5 {[%clk 0:00:03]} 67. Nxf5
{[%clk 0:00:04.4]} 67... c4 {[%clk 0:00:03.5]} 68. Rb7 {[%clk 0:00:04.5]} 68...
b3 {[%clk 0:00:02]} 69. Nd4 {[%clk 0:00:04.7]} 69... Nc3+ {[%clk 0:00:01.5]} 70.
Kd2 {[%clk 0:00:04.7]} 70... Nd5 {[%clk 0:00:02.4]} 71. Nxb3 {[%clk 0:00:04.1]}
71... cxb3 {[%clk 0:00:02.6]} 72. Rxb3 {[%clk 0:00:05]} 72... Nxf4 {[%clk
0:00:03]} 73. Ke3 {[%clk 0:00:04.6]} 73... Ne6 {[%clk 0:00:02.6]} 74. Rb8+
{[%clk 0:00:03.5]} 74... Kd7 {[%clk 0:00:02.3]} 75. Ke4 {[%clk 0:00:03.6]} 75...
Kc6 {[%clk 0:00:01.8]} 76. Rb2 {[%clk 0:00:03.5]} 76... Kd7 {[%clk 0:00:01.2]}
77. Rc2 {[%clk 0:00:03.8]} 77... Ke7 {[%clk 0:00:01.7]} 78. Kf5 {[%clk
0:00:04.3]} 78... Nd4+ {[%clk 0:00:01.9]} 79. Ke4 {[%clk 0:00:03.7]} 79... Nxc2
{[%clk 0:00:02.8]} 80. Kd5 {[%clk 0:00:03.8]} 80... Nb4+ {[%clk 0:00:03]} 81.
Kc5 {[%clk 0:00:04.2]} 81... Ke6 {[%clk 0:00:03.4]} 82. Kxb4 {[%clk 0:00:04.1]}
82... Kxe5 {[%clk 0:00:04.3]} 1/2-1/2

[Event "Late-Titled-Tuesday-Blitz-September-26-2023"]
[Site "Chess.com"]
[Date "2023.09.26"]
[Round "11"]
[White "FMVolodymyrSakun"]
[Black "IlanSchnaider"]
[Result "1-0"]
[WhiteElo "2672"]
[BlackElo "2790"]
[TimeControl "180+1"]
[EndTime "16:03:25 PDT"]
[Termination "FMVolodymyrSakun won by checkmate"]

1. d4 {[%clk 0:02:58.2]} 1... Nf6 {[%clk 0:02:58.9]} 2. c4 {[%clk 0:02:57.6]}
2... g6 {[%clk 0:02:55.3]} 3. Nc3 {[%clk 0:02:56.9]} 3... d5 {[%clk 0:02:54.3]}
4. cxd5 {[%clk 0:02:54.2]} 4... Nxd5 {[%clk 0:02:55.2]} 5. Bd2 {[%clk
0:02:51.3]} 5... c5 {[%clk 0:02:55.1]} 6. dxc5 {[%clk 0:02:50.4]} 6... Bg7
{[%clk 0:02:54.8]} 7. Rc1 {[%clk 0:02:47.4]} 7... O-O {[%clk 0:02:53.5]} 8. Nf3
{[%clk 0:02:44.5]} 8... Nc6 {[%clk 0:02:53.7]} 9. e3 {[%clk 0:02:22.1]} 9...
Ndb4 {[%clk 0:02:53.6]} 10. a3 {[%clk 0:02:17.1]} 10... Nd3+ {[%clk 0:02:53.1]}
11. Bxd3 {[%clk 0:02:17.3]} 11... Qxd3 {[%clk 0:02:54]} 12. Qe2 {[%clk
0:02:12.7]} 12... Qd8 {[%clk 0:02:41.8]} 13. h3 {[%clk 0:02:09.8]} 13... Bf5
{[%clk 0:02:41.8]} 14. e4 {[%clk 0:02:09]} 14... Be6 {[%clk 0:02:39.8]} 15. Be3
{[%clk 0:02:03.9]} 15... Na5 {[%clk 0:02:39.1]} 16. Nd2 {[%clk 0:01:58.6]} 16...
b6 {[%clk 0:02:05.7]} 17. O-O {[%clk 0:01:50.2]} 17... bxc5 {[%clk 0:02:03.8]}
18. Bxc5 {[%clk 0:01:51.1]} 18... Rc8 {[%clk 0:01:55.9]} 19. b4 {[%clk
0:01:23.9]} 19... Nb7 {[%clk 0:01:50.9]} 20. Nb5 {[%clk 0:01:10.6]} 20... a6
{[%clk 0:01:33.3]} 21. Na7 {[%clk 0:01:03.1]} 21... Nxc5 {[%clk 0:00:55.1]} 22.
Nxc8 {[%clk 0:01:01.5]} 22... Nd3 {[%clk 0:00:55.3]} 23. Nxe7+ {[%clk
0:01:00.7]} 23... Kh8 {[%clk 0:00:52.1]} 24. Rc2 {[%clk 0:00:39.9]} 24... Nf4
{[%clk 0:00:41.4]} 25. Qf3 {[%clk 0:00:40]} 25... Nxh3+ {[%clk 0:00:35.4]} 26.
gxh3 {[%clk 0:00:40.9]} 26... Qxe7 {[%clk 0:00:35.9]} 27. Qg2 {[%clk 0:00:37.6]}
27... Rd8 {[%clk 0:00:34.8]} 28. Nf3 {[%clk 0:00:32.6]} 28... h6 {[%clk
0:00:35.2]} 29. Rd2 {[%clk 0:00:29.1]} 29... Rc8 {[%clk 0:00:32.2]} 30. Rfd1
{[%clk 0:00:28.8]} 30... Rc3 {[%clk 0:00:31.4]} 31. Rd3 {[%clk 0:00:27.6]} 31...
Rc2 {[%clk 0:00:29.4]} 32. Nd4 {[%clk 0:00:26.4]} 32... Bxd4 {[%clk 0:00:20]}
33. Rxd4 {[%clk 0:00:27.3]} 33... Qf6 {[%clk 0:00:19]} 34. R4d2 {[%clk
0:00:22.3]} 34... Rc3 {[%clk 0:00:17.8]} 35. Rd3 {[%clk 0:00:21.8]} 35... Rc2
{[%clk 0:00:16]} 36. Qf3 {[%clk 0:00:20.5]} 36... Qg5+ {[%clk 0:00:15.4]} 37.
Qg3 {[%clk 0:00:20.4]} 37... Qf6 {[%clk 0:00:14.6]} 38. Rd8+ {[%clk 0:00:19.4]}
38... Kh7 {[%clk 0:00:12.5]} 39. Qe3 {[%clk 0:00:18]} 39... Rc3 {[%clk
0:00:07.9]} 40. R8d3 {[%clk 0:00:17.5]} 40... Rc2 {[%clk 0:00:08.2]} 41. R3d2
{[%clk 0:00:15.3]} 41... Rc3 {[%clk 0:00:08]} 42. Rd3 {[%clk 0:00:15.6]} 42...
Rc2 {[%clk 0:00:08.6]} 43. Qg3 {[%clk 0:00:11.4]} 43... h5 {[%clk 0:00:06.6]}
44. Rf3 {[%clk 0:00:10.6]} 44... Qg7 {[%clk 0:00:05.6]} 45. e5 {[%clk
0:00:10.1]} 45... Rc4 {[%clk 0:00:04.7]} 46. Qg5 {[%clk 0:00:07.5]} 46... Re4
{[%clk 0:00:03.2]} 47. Rd8 {[%clk 0:00:07.2]} 47... Rxe5 {[%clk 0:00:03]} 48.
Qf6 {[%clk 0:00:07.3]} 48... Re1+ {[%clk 0:00:02.9]} 49. Kh2 {[%clk 0:00:07.1]}
49... Qxf6 {[%clk 0:00:02.2]} 50. Rxf6 {[%clk 0:00:08]} 50... Kg7 {[%clk
0:00:02.7]} 51. Rf3 {[%clk 0:00:08]} 51... Bf5 {[%clk 0:00:02.9]} 52. Re3 {[%clk
0:00:08.1]} 52... Ra1 {[%clk 0:00:02.9]} 53. Rd6 {[%clk 0:00:07.6]} 53... Ra2
{[%clk 0:00:03.1]} 54. Kg3 {[%clk 0:00:07.7]} 54... h4+ {[%clk 0:00:02.6]} 55.
Kxh4 {[%clk 0:00:08]} 55... Bc8 {[%clk 0:00:02.3]} 56. Kg3 {[%clk 0:00:06.8]}
56... Bb7 {[%clk 0:00:02]} 57. Rb6 {[%clk 0:00:06.6]} 57... Bc8 {[%clk
0:00:01.9]} 58. Rb8 {[%clk 0:00:06.6]} 58... Be6 {[%clk 0:00:01.4]} 59. Ra8
{[%clk 0:00:06.7]} 59... Bc4 {[%clk 0:00:01.9]} 60. Ra7 {[%clk 0:00:07]} 60...
Bb5 {[%clk 0:00:02]} 61. Rc3 {[%clk 0:00:06.7]} 61... Rb2 {[%clk 0:00:02]} 62.
f3 {[%clk 0:00:07]} 62... Ra2 {[%clk 0:00:01.9]} 63. h4 {[%clk 0:00:07.5]} 63...
Ra1 {[%clk 0:00:01.8]} 64. Kf4 {[%clk 0:00:07.4]} 64... Rh1 {[%clk 0:00:02]} 65.
Kg3 {[%clk 0:00:07.6]} 65... Rg1+ {[%clk 0:00:02.4]} 66. Kf2 {[%clk 0:00:07.7]}
66... Rh1 {[%clk 0:00:02.8]} 67. Rcc7 {[%clk 0:00:07.6]} 67... Be8 {[%clk
0:00:02.6]} 68. Re7 {[%clk 0:00:07.2]} 68... Kf8 {[%clk 0:00:02.6]} 69. Rec7
{[%clk 0:00:06.1]} 69... Kg7 {[%clk 0:00:02]} 70. Rxa6 {[%clk 0:00:06.3]} 70...
Rh3 {[%clk 0:00:01.3]} 71. Rb6 {[%clk 0:00:05.6]} 71... Rh2+ {[%clk 0:00:01.8]}
72. Ke3 {[%clk 0:00:05.4]} 72... Ra2 {[%clk 0:00:02.5]} 73. Ra7 {[%clk
0:00:05.1]} 73... g5 {[%clk 0:00:02]} 74. hxg5 {[%clk 0:00:04.7]} 74... Ra1
{[%clk 0:00:02.8]} 75. b5 {[%clk 0:00:04.7]} 75... Re1+ {[%clk 0:00:03.5]} 76.
Kf4 {[%clk 0:00:05.1]} 76... Rb1 {[%clk 0:00:04.3]} 77. a4 {[%clk 0:00:05.7]}
77... Rb4+ {[%clk 0:00:04.1]} 78. Kg3 {[%clk 0:00:06]} 78... Rb3 {[%clk
0:00:04.3]} 79. Rbb7 {[%clk 0:00:06.4]} 79... Kg6 {[%clk 0:00:03.9]} 80. b6
{[%clk 0:00:06.9]} 80... Bc6 {[%clk 0:00:03.9]} 81. Rxf7 {[%clk 0:00:05.9]}
81... Bd5 {[%clk 0:00:04.4]} 82. Rf6+ {[%clk 0:00:06.1]} 82... Kxg5 {[%clk
0:00:04.9]} 83. Rd6 {[%clk 0:00:06.2]} 83... Rxf3+ {[%clk 0:00:04.8]} 84. Kh2
{[%clk 0:00:06.4]} 84... Rf2+ {[%clk 0:00:05]} 85. Kg1 {[%clk 0:00:06.8]} 85...
Rd2 {[%clk 0:00:05.2]} 86. Rad7 {[%clk 0:00:06]} 86... Rd1+ {[%clk 0:00:05.7]}
87. Kf2 {[%clk 0:00:05.9]} 87... Rd2+ {[%clk 0:00:06.3]} 88. Ke3 {[%clk
0:00:06.3]} 88... Ra2 {[%clk 0:00:04.4]} 89. Rxd5+ {[%clk 0:00:06.7]} 89... Kf6
{[%clk 0:00:04.2]} 90. b7 {[%clk 0:00:07]} 90... Ra3+ {[%clk 0:00:03.6]} 91. Kd4
{[%clk 0:00:07.5]} 91... Rxa4+ {[%clk 0:00:04.5]} 92. Kc5 {[%clk 0:00:08]} 92...
Ra5+ {[%clk 0:00:05.1]} 93. Kb6 {[%clk 0:00:08.5]} 93... Ra3 {[%clk 0:00:04.6]}
94. R7d6+ {[%clk 0:00:08.8]} 94... Ke7 {[%clk 0:00:04.6]} 95. Rd7+ {[%clk
0:00:09.1]} 95... Ke6 {[%clk 0:00:04.6]} 96. b8=Q {[%clk 0:00:09.6]} 96... Rb3+
{[%clk 0:00:04.1]} 97. Kc7 {[%clk 0:00:09.6]} 97... Rc3+ {[%clk 0:00:03.4]} 98.
Kb7 {[%clk 0:00:05.9]} 98... Rb3+ {[%clk 0:00:03.7]} 99. Kc7 {[%clk 0:00:05.6]}
99... Rc3+ {[%clk 0:00:04.1]} 100. Kb6 {[%clk 0:00:05.4]} 100... Rb3+ {[%clk
0:00:04.4]} 101. Ka7 {[%clk 0:00:04.5]} 101... Ra3+ {[%clk 0:00:04.9]} 102. Kb7
{[%clk 0:00:04.7]} 102... Rb3+ {[%clk 0:00:05.4]} 103. Kc8 {[%clk 0:00:04.3]}
103... Rc3+ {[%clk 0:00:06]} 104. Kd8 {[%clk 0:00:04.4]} 104... Rc8+ {[%clk
0:00:01.7]} 105. Kxc8 {[%clk 0:00:04.4]} 105... Kf6 {[%clk 0:00:02.6]} 106. Qd6#
{[%clk 0:00:04.5]} 1-0